{"text_format":"3","workbook":"xlsx","n_sheets":1,"sheets":["Seznam inventarja"],"not_rendered":{"defined_names":3},"read":"whole","date_system":"1900"}

{"sheet":"Seznam inventarja","index":0,"n_rows":28,"n_cols":12,"rows_kept":28,"merged":[[0,2,0,4],[0,5,0,6]]}
[null,null,"Seznam inventarja",null,null,"Želite označiti elemente za prerazporeditev?",null,"Da"]
[]
[null,"Elementi, označeni z zastavico, za prerazporeditev","ID inventarja","Ime","Opis","Cena enote","Količina na zalogi","Vrednost inventarja","Raven prerazporeditve","Čas prerazporeditve v dnevih","Količina, ki se prerazporeja","Je opuščeno?"]
[null,{"$f":"IFERROR((SeznamInventarja[[#This Row],[Količina na zalogi]]<=SeznamInventarja[[#This Row],[Raven prerazporeditve]])*(SeznamInventarja[[#This Row],[Je opuščeno?]]=\"\")*vredOznači,0)","v":1},"IN0001","Element 1","Opis 1",{"v":51,"d":"51.00 €"},25,{"$f":"SeznamInventarja[[#This Row],[Cena enote]]*SeznamInventarja[[#This Row],[Količina na zalogi]]","v":{"v":1275,"d":"1,275.00 €"}},29,13,50,""]
[null,{"$f":"IFERROR((SeznamInventarja[[#This Row],[Količina na zalogi]]<=SeznamInventarja[[#This Row],[Raven prerazporeditve]])*(SeznamInventarja[[#This Row],[Je opuščeno?]]=\"\")*vredOznači,0)","v":1},"IN0002","Element 2","Opis 2",{"v":93,"d":"93.00 €"},132,{"$f":"SeznamInventarja[[#This Row],[Cena enote]]*SeznamInventarja[[#This Row],[Količina na zalogi]]","v":{"v":12276,"d":"12,276.00 €"}},231,4,50,""]
[null,{"$f":"IFERROR((SeznamInventarja[[#This Row],[Količina na zalogi]]<=SeznamInventarja[[#This Row],[Raven prerazporeditve]])*(SeznamInventarja[[#This Row],[Je opuščeno?]]=\"\")*vredOznači,0)","v":0},"IN0003","Element 3","Opis 3",{"v":57,"d":"57.00 €"},151,{"$f":"SeznamInventarja[[#This Row],[Cena enote]]*SeznamInventarja[[#This Row],[Količina na zalogi]]","v":{"v":8607,"d":"8,607.00 €"}},114,11,150,""]
[null,{"$f":"IFERROR((SeznamInventarja[[#This Row],[Količina na zalogi]]<=SeznamInventarja[[#This Row],[Raven prerazporeditve]])*(SeznamInventarja[[#This Row],[Je opuščeno?]]=\"\")*vredOznači,0)","v":0},"IN0004","Element 4","Opis 4",{"v":19,"d":"19.00 €"},186,{"$f":"SeznamInventarja[[#This Row],[Cena enote]]*SeznamInventarja[[#This Row],[Količina na zalogi]]","v":{"v":3534,"d":"3,534.00 €"}},158,6,50,""]
[null,{"$f":"IFERROR((SeznamInventarja[[#This Row],[Količina na zalogi]]<=SeznamInventarja[[#This Row],[Raven prerazporeditve]])*(SeznamInventarja[[#This Row],[Je opuščeno?]]=\"\")*vredOznači,0)","v":0},"IN0005","Element 5","Opis 5",{"v":75,"d":"75.00 €"},62,{"$f":"SeznamInventarja[[#This Row],[Cena enote]]*SeznamInventarja[[#This Row],[Količina na zalogi]]","v":{"v":4650,"d":"4,650.00 €"}},39,12,50,""]
[null,{"$f":"IFERROR((SeznamInventarja[[#This Row],[Količina na zalogi]]<=SeznamInventarja[[#This Row],[Raven prerazporeditve]])*(SeznamInventarja[[#This Row],[Je opuščeno?]]=\"\")*vredOznači,0)","v":1},"IN0006","Element 6","Opis 6",{"v":11,"d":"11.00 €"},5,{"$f":"SeznamInventarja[[#This Row],[Cena enote]]*SeznamInventarja[[#This Row],[Količina na zalogi]]","v":{"v":55,"d":"55.00 €"}},9,13,150,""]
[null,{"$f":"IFERROR((SeznamInventarja[[#This Row],[Količina na zalogi]]<=SeznamInventarja[[#This Row],[Raven prerazporeditve]])*(SeznamInventarja[[#This Row],[Je opuščeno?]]=\"\")*vredOznači,0)","v":0},"IN0007","Element 7","Opis 7",{"v":56,"d":"56.00 €"},58,{"$f":"SeznamInventarja[[#This Row],[Cena enote]]*SeznamInventarja[[#This Row],[Količina na zalogi]]","v":{"v":3248,"d":"3,248.00 €"}},109,7,100,"da"]
[null,{"$f":"IFERROR((SeznamInventarja[[#This Row],[Količina na zalogi]]<=SeznamInventarja[[#This Row],[Raven prerazporeditve]])*(SeznamInventarja[[#This Row],[Je opuščeno?]]=\"\")*vredOznači,0)","v":1},"IN0008","Element 8","Opis 8",{"v":38,"d":"38.00 €"},101,{"$f":"SeznamInventarja[[#This Row],[Cena enote]]*SeznamInventarja[[#This Row],[Količina na zalogi]]","v":{"v":3838,"d":"3,838.00 €"}},162,3,100,""]
[null,{"$f":"IFERROR((SeznamInventarja[[#This Row],[Količina na zalogi]]<=SeznamInventarja[[#This Row],[Raven prerazporeditve]])*(SeznamInventarja[[#This Row],[Je opuščeno?]]=\"\")*vredOznači,0)","v":0},"IN0009","Element 9","Opis 9",{"v":59,"d":"59.00 €"},122,{"$f":"SeznamInventarja[[#This Row],[Cena enote]]*SeznamInventarja[[#This Row],[Količina na zalogi]]","v":{"v":7198,"d":"7,198.00 €"}},82,3,150,""]
[null,{"$f":"IFERROR((SeznamInventarja[[#This Row],[Količina na zalogi]]<=SeznamInventarja[[#This Row],[Raven prerazporeditve]])*(SeznamInventarja[[#This Row],[Je opuščeno?]]=\"\")*vredOznači,0)","v":1},"IN0010","Element 10","Opis 10",{"v":50,"d":"50.00 €"},175,{"$f":"SeznamInventarja[[#This Row],[Cena enote]]*SeznamInventarja[[#This Row],[Količina na zalogi]]","v":{"v":8750,"d":"8,750.00 €"}},283,8,150,""]
[null,{"$f":"IFERROR((SeznamInventarja[[#This Row],[Količina na zalogi]]<=SeznamInventarja[[#This Row],[Raven prerazporeditve]])*(SeznamInventarja[[#This Row],[Je opuščeno?]]=\"\")*vredOznači,0)","v":1},"IN0011","Element 11","Opis 11",{"v":59,"d":"59.00 €"},176,{"$f":"SeznamInventarja[[#This Row],[Cena enote]]*SeznamInventarja[[#This Row],[Količina na zalogi]]","v":{"v":10384,"d":"10,384.00 €"}},229,1,100,""]
[null,{"$f":"IFERROR((SeznamInventarja[[#This Row],[Količina na zalogi]]<=SeznamInventarja[[#This Row],[Raven prerazporeditve]])*(SeznamInventarja[[#This Row],[Je opuščeno?]]=\"\")*vredOznači,0)","v":1},"IN0012","Element 12","Opis 12",{"v":18,"d":"18.00 €"},22,{"$f":"SeznamInventarja[[#This Row],[Cena enote]]*SeznamInventarja[[#This Row],[Količina na zalogi]]","v":{"v":396,"d":"396.00 €"}},36,12,50,""]
[null,{"$f":"IFERROR((SeznamInventarja[[#This Row],[Količina na zalogi]]<=SeznamInventarja[[#This Row],[Raven prerazporeditve]])*(SeznamInventarja[[#This Row],[Je opuščeno?]]=\"\")*vredOznači,0)","v":1},"IN0013","Element 13","Opis 13",{"v":26,"d":"26.00 €"},72,{"$f":"SeznamInventarja[[#This Row],[Cena enote]]*SeznamInventarja[[#This Row],[Količina na zalogi]]","v":{"v":1872,"d":"1,872.00 €"}},102,9,100,""]
[null,{"$f":"IFERROR((SeznamInventarja[[#This Row],[Količina na zalogi]]<=SeznamInventarja[[#This Row],[Raven prerazporeditve]])*(SeznamInventarja[[#This Row],[Je opuščeno?]]=\"\")*vredOznači,0)","v":1},"IN0014","Element 14","Opis 14",{"v":42,"d":"42.00 €"},62,{"$f":"SeznamInventarja[[#This Row],[Cena enote]]*SeznamInventarja[[#This Row],[Količina na zalogi]]","v":{"v":2604,"d":"2,604.00 €"}},83,2,100,""]
[null,{"$f":"IFERROR((SeznamInventarja[[#This Row],[Količina na zalogi]]<=SeznamInventarja[[#This Row],[Raven prerazporeditve]])*(SeznamInventarja[[#This Row],[Je opuščeno?]]=\"\")*vredOznači,0)","v":0},"IN0015","Element 15","Opis 15",{"v":32,"d":"32.00 €"},46,{"$f":"SeznamInventarja[[#This Row],[Cena enote]]*SeznamInventarja[[#This Row],[Količina na zalogi]]","v":{"v":1472,"d":"1,472.00 €"}},23,15,50,""]
[null,{"$f":"IFERROR((SeznamInventarja[[#This Row],[Količina na zalogi]]<=SeznamInventarja[[#This Row],[Raven prerazporeditve]])*(SeznamInventarja[[#This Row],[Je opuščeno?]]=\"\")*vredOznači,0)","v":1},"IN0016","Element 16","Opis 16",{"v":90,"d":"90.00 €"},96,{"$f":"SeznamInventarja[[#This Row],[Cena enote]]*SeznamInventarja[[#This Row],[Količina na zalogi]]","v":{"v":8640,"d":"8,640.00 €"}},180,3,50,""]
[null,{"$f":"IFERROR((SeznamInventarja[[#This Row],[Količina na zalogi]]<=SeznamInventarja[[#This Row],[Raven prerazporeditve]])*(SeznamInventarja[[#This Row],[Je opuščeno?]]=\"\")*vredOznači,0)","v":0},"IN0017","Element 17","Opis 17",{"v":97,"d":"97.00 €"},57,{"$f":"SeznamInventarja[[#This Row],[Cena enote]]*SeznamInventarja[[#This Row],[Količina na zalogi]]","v":{"v":5529,"d":"5,529.00 €"}},98,12,50,"Da"]
[null,{"$f":"IFERROR((SeznamInventarja[[#This Row],[Količina na zalogi]]<=SeznamInventarja[[#This Row],[Raven prerazporeditve]])*(SeznamInventarja[[#This Row],[Je opuščeno?]]=\"\")*vredOznači,0)","v":1},"IN0018","Element 18","Opis 18",{"v":12,"d":"12.00 €"},6,{"$f":"SeznamInventarja[[#This Row],[Cena enote]]*SeznamInventarja[[#This Row],[Količina na zalogi]]","v":{"v":72,"d":"72.00 €"}},7,13,50,""]
[null,{"$f":"IFERROR((SeznamInventarja[[#This Row],[Količina na zalogi]]<=SeznamInventarja[[#This Row],[Raven prerazporeditve]])*(SeznamInventarja[[#This Row],[Je opuščeno?]]=\"\")*vredOznači,0)","v":1},"IN0019","Element 19","Opis 19",{"v":82,"d":"82.00 €"},143,{"$f":"SeznamInventarja[[#This Row],[Cena enote]]*SeznamInventarja[[#This Row],[Količina na zalogi]]","v":{"v":11726,"d":"11,726.00 €"}},164,12,150]
[null,{"$f":"IFERROR((SeznamInventarja[[#This Row],[Količina na zalogi]]<=SeznamInventarja[[#This Row],[Raven prerazporeditve]])*(SeznamInventarja[[#This Row],[Je opuščeno?]]=\"\")*vredOznači,0)","v":0},"IN0020","Element 20","Opis 20",{"v":16,"d":"16.00 €"},124,{"$f":"SeznamInventarja[[#This Row],[Cena enote]]*SeznamInventarja[[#This Row],[Količina na zalogi]]","v":{"v":1984,"d":"1,984.00 €"}},113,14,50,""]
[null,{"$f":"IFERROR((SeznamInventarja[[#This Row],[Količina na zalogi]]<=SeznamInventarja[[#This Row],[Raven prerazporeditve]])*(SeznamInventarja[[#This Row],[Je opuščeno?]]=\"\")*vredOznači,0)","v":0},"IN0021","Element 21","Opis 21",{"v":19,"d":"19.00 €"},112,{"$f":"SeznamInventarja[[#This Row],[Cena enote]]*SeznamInventarja[[#This Row],[Količina na zalogi]]","v":{"v":2128,"d":"2,128.00 €"}},75,11,50,""]
[null,{"$f":"IFERROR((SeznamInventarja[[#This Row],[Količina na zalogi]]<=SeznamInventarja[[#This Row],[Raven prerazporeditve]])*(SeznamInventarja[[#This Row],[Je opuščeno?]]=\"\")*vredOznači,0)","v":0},"IN0022","Element 22","Opis 22",{"v":24,"d":"24.00 €"},182,{"$f":"SeznamInventarja[[#This Row],[Cena enote]]*SeznamInventarja[[#This Row],[Količina na zalogi]]","v":{"v":4368,"d":"4,368.00 €"}},132,15,150,""]
[null,{"$f":"IFERROR((SeznamInventarja[[#This Row],[Količina na zalogi]]<=SeznamInventarja[[#This Row],[Raven prerazporeditve]])*(SeznamInventarja[[#This Row],[Je opuščeno?]]=\"\")*vredOznači,0)","v":0},"IN0023","Element 23","Opis 23",{"v":29,"d":"29.00 €"},106,{"$f":"SeznamInventarja[[#This Row],[Cena enote]]*SeznamInventarja[[#This Row],[Količina na zalogi]]","v":{"v":3074,"d":"3,074.00 €"}},142,1,150,"Da"]
[null,{"$f":"IFERROR((SeznamInventarja[[#This Row],[Količina na zalogi]]<=SeznamInventarja[[#This Row],[Raven prerazporeditve]])*(SeznamInventarja[[#This Row],[Je opuščeno?]]=\"\")*vredOznači,0)","v":0},"IN0024","Element 24","Opis 24",{"v":75,"d":"75.00 €"},173,{"$f":"SeznamInventarja[[#This Row],[Cena enote]]*SeznamInventarja[[#This Row],[Količina na zalogi]]","v":{"v":12975,"d":"12,975.00 €"}},127,9,100,""]
[null,{"$f":"IFERROR((SeznamInventarja[[#This Row],[Količina na zalogi]]<=SeznamInventarja[[#This Row],[Raven prerazporeditve]])*(SeznamInventarja[[#This Row],[Je opuščeno?]]=\"\")*vredOznači,0)","v":0},"IN0025","Element 25","Opis 25",{"v":14,"d":"14.00 €"},28,{"$f":"SeznamInventarja[[#This Row],[Cena enote]]*SeznamInventarja[[#This Row],[Količina na zalogi]]","v":{"v":392,"d":"392.00 €"}},21,8,50,""]